bitfinex/quotes_ETHUSD_20241225
["timestamp","ask_amount","ask_price","bid_price","bid_amount"]
[1735166838984,1.19781922,3481.0,3480.8,2.29831]
[1735166839151,1.19781922,3481.0,3480.9,35.0]
[1735166839590,0.7842,3481.3,3480.9,35.0]
[1735166845220,0.7842,3481.5,3480.9,35.0]
[1735166850661,0.7842,3481.5,3480.8,2.29831]
[1735166851152,0.7842,3481.5,3480.8,37.29831]
[1735166851659,1.98201922,3481.5,3480.8,37.29831]
[1735166853163,0.7842,3481.5,3480.8,37.29831]
[1735166854159,0.7842,3481.5,3480.8,2.29831]
[1735166854572,1.98201922,3481.5,3480.8,2.29831]
[1735166854780,1.98201922,3481.5,3480.9,35.0]
[1735166855475,2.35989403,3481.5,3480.9,35.0]
[1735166857276,1.16207481,3481.5,3480.9,35.0]
[1735166858286,0.784,3481.2,3480.3,4.18955828]
[1735166858846,0.784,3481.2,3480.4,35.0]
[1735166859046,1.12998748,3481.2,3480.4,35.0]
[1735166859247,3.42803748,3481.2,3480.4,35.0]
[1735166859481,0.784,3481.1,3480.4,35.0]
[1735166860750,1.98181922,3481.1,3480.4,35.0]
[1735166864200,0.784,3481.1,3480.4,35.0]
[1735166864399,1.42625855,3481.1,3480.4,35.0]
[1735166865264,2.62407777,3481.1,3480.4,35.0]
[1735166873826,0.7549,3481.0,3480.4,35.0]
[1735166874233,1.95271922,3481.0,3480.4,35.0]
[1735166877354,1.95271922,3481.0,3480.2,2.2987]
[1735166877979,1.95271922,3481.0,3480.3,35.0]
[1735166883200,1.19781922,3481.0,3480.4,3.08798]
[1735166883791,1.19781922,3481.0,3480.5,35.0]
[1735166884566,0.7738,3481.2,3480.5,35.0]
[1735166885313,1.19781922,3481.1,3480.5,35.0]
[1735166887830,1.19781922,3481.1,3480.4,3.08798]
[1735166888133,0.7738,3481.0,3480.1,4.18957959]
[1735166888371,0.7738,3481.0,3480.4,2.29858]
[1735166890084,1.19781922,3481.1,3480.5,0.7894]
[1735166890484,1.19781922,3481.1,3480.6,35.0]
[1735166891604,1.19781922,3481.1,3480.0,1.18955828]
[1735166891605,0.7738,3480.6,3480.0,1.18955828]
[1735166891920,2.29872,3480.2,3480.0,1.18955828]
[1735166892079,0.7738,3480.1,3480.0,1.18955828]
[1735166892279,0.97013796,3480.1,3480.0,1.18955828]
[1735166893896,2.76686679,3480.1,3479.0,3.08885]
[1735166894723,2.76686679,3480.1,3479.1,35.0]
[1735166895021,1.20472134,3480.0,3479.1,35.0]
[1735166897011,2.1748593,3480.1,3479.1,35.0]
[1735166897521,2.1748593,3480.1,3479.1,36.00011163]
[1735166898103,0.7888,3480.0,3479.1,36.00011163]
[1735166903292,0.7888,3480.0,3479.1,35.0]
[1735166904433,3.08767,3480.0,3479.1,35.0]
[1735166904597,2.29887,3480.0,3479.1,35.0]
[1735166904797,0.7888,3479.9,3479.1,35.0]
[1735166910434,0.7888,3479.9,3478.9,2.29956]
[1735166910597,0.7888,3479.9,3479.0,0.3965029]
[1735166910798,0.7888,3479.9,3479.1,35.0]
[1735166915023,0.7888,3479.9,3479.1,36.18957959]
[1735166921384,0.7888,3479.9,3479.0,0.3965029]
[1735166921681,0.7888,3479.9,3479.0,1.58608249]
[1735166921857,0.7888,3479.9,3479.1,35.0]
[1735166923581,0.7888,3479.9,3479.0,1.58608249]
[1735166923959,0.7888,3479.9,3479.1,35.0]
[1735166929560,0.7888,3479.9,3479.1,37.84628631]
[1735166929890,0.7888,3479.9,3479.3,1.18957959]
[1735166930446,0.7888,3479.9,3479.4,35.0]
[1735166939120,1.99352134,3479.9,3479.4,35.0]
[1735166940225,0.7888,3479.9,3479.5,0.9901953]
[1735166940810,0.7888,3479.9,3479.6,35.0]
[1735166943120,1.20472134,3480.0,3479.6,35.0]
[1735166943289,1.20472134,3480.0,3479.6,37.84628631]
[1735166945860,0.8248,3480.1,3479.6,37.84628631]
[1735166947553,0.8248,3480.1,3479.7,0.02873501]
[1735166948163,0.8248,3480.1,3479.8,35.0]
[1735166948345,0.8248,3480.1,3479.9,2.84628631]
[1735166949619,1.20472134,3480.3,3479.9,2.84628631]
[1735166951750,1.20472134,3480.3,3479.7,3.08323]
[1735166951952,2.02952134,3480.4,3480.0,35.0]
[1735166955904,2.02952134,3480.4,3479.8,3.48850959]
[1735166956200,2.02952134,3480.4,3479.9,35.0]
[1735166957600,1.20472134,3480.4,3479.9,35.0]
[1735166957772,1.20472134,3480.4,3480.0,2.84628631]
[1735166958177,1.20472134,3480.4,3479.9,2.29891]
[1735166958365,1.20472134,3480.4,3480.1,35.0]
[1735166958759,1.20472134,3480.6,3480.1,35.0]
[1735166959889,2.00182134,3480.7,3480.1,35.0]
[1735166961790,2.00182134,3480.7,3480.1,35.7748]
[1735166961991,2.00182134,3480.7,3480.2,2.84628631]
[1735166962394,2.00182134,3480.7,3480.1,1.96437959]
[1735166962591,1.20472134,3480.7,3480.3,35.0]
[1735166964048,1.20472134,3480.8,3480.3,35.0]
[1735166965351,2.00182134,3480.9,3480.3,35.0]
[1735166966536,2.00182134,3480.9,3480.1,1.96437959]
[1735166966845,2.00182134,3480.9,3480.1,2.39070155]
[1735166967039,2.00182134,3480.9,3480.2,35.0]
[1735166969015,0.7971,3480.9,3480.2,35.0]
[1735166972155,0.7971,3480.9,3480.2,38.48828959]
[1735166972958,0.7971,3480.9,3480.3,2.29863]
[1735166973120,0.7971,3480.9,3480.4,2.84628631]
[1735166973322,0.7971,3480.9,3480.3,2.29863]
[1735166973541,0.7971,3480.9,3480.5,35.0]
[1735166978262,0.7971,3480.9,3480.3,2.29863]
[1735166978859,0.7971,3480.9,3480.4,35.0]
[1735166993538,2.00182134,3480.9,3480.4,35.0]
[1735166995546,2.00182134,3480.9,3480.2,2.29871]
[1735166995733,2.00182134,3480.9,3480.2,2.67827024]
[1735166996046,2.00182134,3480.9,3480.3,35.0]
[1735166996423,0.7971,3480.9,3480.3,35.0]
[1735166998249,0.7971,3480.9,3480.4,2.29858]
[1735166998813,0.7971,3480.9,3480.5,35.0]
[1735166999012,0.7971,3480.9,3480.5,37.84628631]
[1735167001555,2.00182134,3480.9,3480.5,37.84628631]
[1735167002952,0.7971,3480.9,3480.5,37.84628631]
[1735167004464,2.00182134,3480.9,3480.5,37.84628631]
[1735167008801,1.20472134,3480.8,3480.5,37.84628631]
[1735167014500,1.20472134,3480.7,3480.5,37.84628631]
[1735167015959,1.20472134,3480.8,3480.5,37.84628631]
[1735167017288,1.20472134,3480.7,3480.5,37.84628631]
[1735167018699,1.20472134,3480.8,3480.5,37.84628631]
[1735167019064,1.20472134,3480.8,3480.5,35.0]
[1735167022699,0.8071,3480.7,3480.4,2.29858]
[1735167023301,0.8071,3480.7,3480.5,35.0]
[1735167023803,1.20472134,3480.8,3480.5,35.0]
[1735167024008,1.20472134,3480.8,3480.5,35.8144]
[1735167024306,1.20472134,3480.7,3480.6,2.84628631]
[1735167024784,1.20472134,3480.7,3480.5,0.8144]
[1735167024988,1.20472134,3480.7,3480.6,35.0]
[1735167025400,1.20472134,3480.9,3480.6,35.99105007]
[1735167026786,1.20472134,3480.9,3480.6,35.0]
[1735167029712,1.20472134,3480.8,3480.6,35.0]
[1735167031495,1.20472134,3480.8,3480.4,2.29858]
[1735167031695,1.20472134,3480.8,3480.4,3.08301491]
[1735167031994,1.20472134,3480.8,3480.5,35.0]
[1735167032196,1.20472134,3480.9,3480.5,35.0]
[1735167035129,1.20472134,3480.8,3480.5,35.0]
[1735167047974,1.20472134,3480.9,3480.5,35.0]
[1735167048277,1.20472134,3480.9,3480.5,37.84628631]
[1735167052785,1.20472134,3480.8,3480.5,37.84628631]
[1735167053578,0.7952,3480.7,3480.4,2.29858]
[1735167053744,0.7952,3480.7,3480.3,1.18955828]
[1735167053961,0.7952,3480.7,3480.4,35.0]
[1735167054900,0.7952,3480.7,3480.5,0.99242813]
[1735167055505,0.7952,3480.7,3480.6,35.0]
[1735167062977,0.7952,3480.7,3480.3,1.18955828]
[1735167063479,0.7952,3480.7,3480.4,35.0]
[1735167063994,0.7952,3480.7,3480.3,1.18955828]
[1735167064481,0.7952,3480.7,3480.3,36.18955828]
[1735167064899,1.20472134,3480.5,3480.3,35.0]
[1735167067429,1.20472134,3480.6,3480.3,37.84628631]
[1735167067651,1.20472134,3480.6,3480.4,0.95152735]
[1735167068732,1.20472134,3480.9,3480.4,3.25010735]
[1735167070293,2.01262134,3481.0,3480.5,0.99276343]
[1735167070602,2.01262134,3481.0,3480.6,2.84628631]
[1735167070926,2.01262134,3481.0,3480.5,0.99276343]
[1735167071087,2.01262134,3481.0,3480.7,35.0]
[1735167072831,1.20472134,3480.9,3480.7,35.0]
[1735167075327,2.01262134,3481.0,3480.7,35.0]
[1735167076449,2.01262134,3481.0,3480.9,0.0496]
[1735167076736,0.8079,3481.0,3480.9,0.0496]
[1735167077936,2.01440158,3481.0,3480.9,0.0496]
[1735167080329,2.01440158,3481.0,3480.9,35.0496]
[1735167083352,2.01440158,3481.0,3480.9,0.0496]
[1735167083855,2.01440158,3481.0,3480.9,35.0496]
[1735167085158,1.20650158,3481.0,3480.9,37.89588631]
[1735167086660,1.20650158,3481.3,3480.9,37.89588631]
[1735167092959,1.20650158,3481.3,3480.9,2.89588631]
[1735167093160,1.20650158,3481.3,3480.9,0.0496]
[1735167096237,1.97260158,3481.4,3480.9,0.0496]
[1735167096977,1.97260158,3481.4,3481.0,35.0]
[1735167099079,1.20650158,3481.4,3481.3,1.74259517]
[1735167099653,1.20650158,3481.4,3481.3,36.74259517]
[1735167099868,1.20650158,3481.4,3481.3,39.58888148]
[1735167100963,1.20650158,3481.4,3481.3,41.88687148]
[1735167101481,1.20650158,3482.0,3481.6,0.7912]
[1735167102674,1.20650158,3482.3,3481.6,0.7912]
[1735167102910,1.20650158,3482.3,3481.7,0.308905]
[1735167103217,1.20650158,3482.3,3481.8,0.7912]
[1735167104022,1.20650158,3482.5,3481.8,0.7912]
[1735167105136,0.7661,3482.6,3481.9,35.0]
[1735167105298,1.20650158,3482.7,3481.9,35.0]
[1735167105482,1.20650158,3482.7,3482.0,2.84628631]
[1735167105881,1.20650158,3482.7,3481.8,0.7912]
[1735167106095,1.20650158,3482.7,3481.9,35.0]
[1735167106304,1.20650158,3482.8,3481.9,35.0]
[1735167106500,0.7661,3482.7,3481.7,2.606625]
[1735167107100,0.7661,3482.7,3481.8,38.08885]
[1735167107316,0.7661,3482.7,3481.9,2.84628631]
[1735167107725,0.7661,3482.7,3481.8,3.08885]
[1735167107930,0.7661,3482.7,3481.9,35.0]
[1735167108087,0.7661,3482.7,3481.8,3.08885]
[1735167111020,0.7661,3482.7,3481.9,2.29757]
[1735167114147,0.7661,3482.7,3482.0,35.0]
[1735167114543,0.7661,3482.7,3481.9,2.29757]
[1735167114840,0.96336016,3482.7,3481.9,2.29757]
[1735167115046,0.96336016,3482.7,3482.0,35.0]
[1735167117348,0.7661,3482.7,3482.0,35.0]
[1735167125768,0.7661,3482.7,3482.0,37.29752]
[1735167130637,0.7661,3482.7,3482.0,35.0]
[1735167130837,0.7661,3482.7,3482.4,2.29726]
[1735167131067,1.96720158,3483.0,3482.4,2.29726]
[1735167131369,1.96720158,3483.0,3482.4,2.606576]
[1735167131535,1.96720158,3483.0,3482.5,35.0]
[1735167132065,1.96720158,3483.0,3482.4,2.606576]
[1735167132659,0.7607,3483.0,3482.4,2.606576]
[1735167135377,0.7607,3483.0,3482.4,0.309316]
[1735167135578,0.7607,3483.0,3482.5,2.84628631]
[1735167138846,0.7607,3483.0,3482.4,3.378266]
[1735167139269,0.7607,3483.0,3482.4,38.378266]
[1735167140609,1.20650158,3483.2,3482.5,2.29719]
[1735167142208,0.7579,3483.3,3482.5,2.29719]
[1735167142366,0.7579,3483.3,3482.6,2.84628631]
[1735167143911,0.7579,3483.3,3482.5,2.29719]
[1735167144205,1.96440158,3483.3,3482.5,37.29719]
[1735167144526,0.7704,3483.2,3482.5,37.29719]
[1735167145391,0.7704,3483.2,3482.6,2.29711]
[1735167146005,0.7704,3483.2,3482.7,35.0]
[1735167146210,0.7704,3483.2,3482.8,2.84628631]
[1735167146869,0.7704,3483.2,3482.6,2.29711]
[1735167149978,0.7704,3483.2,3482.6,3.24850517]
[1735167150516,0.7704,3483.2,3482.6,38.24850517]
[1735167151132,1.20650158,3483.4,3482.7,3.1035]
[1735167151344,1.20650158,3483.4,3482.8,0.95139517]
[1735167151479,1.20650158,3483.4,3482.9,2.84628631]
[1735167153192,0.7982,3483.5,3482.9,2.84628631]
[1735167153604,0.7982,3483.5,3483.0,0.02870805]
[1735167153777,0.7982,3483.5,3482.9,2.29693]
[1735167153982,0.7982,3483.5,3483.0,35.0]
[1735167154320,0.7982,3483.5,3483.0,37.84628631]
[1735167158017,0.7982,3483.5,3483.0,35.0]
[1735167158219,1.20650158,3483.8,3481.5,14.93652486]
[1735167158220,0.95139517,3483.2,3482.3,1.18955828]
[1735167158390,0.7982,3482.7,3482.3,1.18955828]
[1735167158591,0.7982,3482.6,3482.3,1.18955828]
[1735167158785,0.25477952,3482.6,3482.3,1.18955828]
[1735167159108,0.7982,3482.5,3482.3,1.18955828]
[1735167160361,0.7982,3482.5,3481.7,0.95139517]
[1735167160535,0.7982,3482.5,3481.7,3.95139517]
[1735167160935,0.7982,3482.5,3481.8,35.0]
[1735167161773,0.7982,3482.5,3481.9,2.84628631]
[1735167162219,0.7982,3482.5,3481.7,3.95139517]
[1735167162417,0.7982,3482.5,3482.0,35.0]
[1735167176865,0.7982,3482.5,3481.8,3.2484122]
[1735167177491,0.7982,3482.5,3481.9,35.0]
[1735167184842,0.7982,3482.5,3481.9,37.29759]
[1735167184998,0.7982,3482.5,3482.0,2.84628631]
[1735167188318,0.7982,3482.5,3481.9,2.29759]
[1735167188518,0.7982,3482.5,3482.1,35.0]
[1735167193267,0.7982,3482.5,3481.9,2.29759]
[1735167193765,0.7982,3482.5,3482.0,35.0]
[1735167194270,0.7982,3482.5,3481.9,2.29759]
[1735167194623,0.7582,3482.4,3481.6,3.0]
[1735167194828,0.7582,3482.2,3481.4,1.18955828]
[1735167195083,0.7582,3482.0,3481.3,1.18955828]
[1735167195241,0.7582,3481.9,3481.3,1.18955828]
[1735167195422,0.7582,3481.9,3481.3,1.72485951]
[1735167195627,0.7582,3481.9,3481.4,2.29791]
[1735167198861,0.7582,3481.9,3481.4,37.29791]
[1735167199977,0.7582,3481.9,3481.4,35.0]
[1735167203387,0.7582,3481.9,3481.1,5.29811]
[1735167203591,0.7582,3481.9,3481.2,0.62984921]
[1735167203953,0.7582,3481.9,3481.3,35.0]
[1735167210212,0.7582,3481.9,3481.0,2.29818]
[1735167210377,0.55,3481.8,3480.9,1.23915828]
[1735167210580,0.7968,3481.7,3480.9,1.23915828]
[1735167210811,0.7968,3481.5,3480.9,1.23915828]
[1735167211909,0.7968,3481.5,3480.9,0.0496]
[1735167217448,0.8132,3481.1,3480.9,0.0496]
[1735167217646,0.95078212,3481.5,3480.9,0.0496]
[1735167217647,3.79897212,3481.0,3480.9,0.0496]
[1735167217846,4.61217212,3481.0,3480.9,0.0496]
[1735167218051,5.30319333,3481.0,3480.9,0.0496]
[1735167219215,7.09992216,3481.0,3480.9,0.0496]
[1735167219929,7.6647896,3481.0,3480.9,0.0496]
[1735167220326,7.64858754,3481.0,3480.9,0.0496]
[1735167221360,5.86806077,3481.0,3480.9,0.0496]
[1735167222421,7.06898086,3481.0,3480.9,0.0496]
[1735167224474,5.86806077,3481.0,3480.9,0.0496]
[1735167230741,8.86806077,3481.0,3480.9,0.0496]
[1735167234889,8.86806077,3481.0,3480.9,1e-05]
[1735167237680,13.28944581,3481.0,3480.9,1e-05]
[1735167238286,13.43597622,3481.0,3480.9,1e-05]
[1735167239622,14.03488584,3481.0,3480.9,1e-05]
[1735167240788,0.25,3480.7,3479.0,35.7592]
[1735167241028,0.55,3479.8,3479.0,38.60548631]
[1735167241525,2.84902,3479.8,3479.0,38.60548631]
[1735167242819,2.84902,3479.8,3479.0,35.7592]
[1735167243818,2.29918,3479.5,3479.0,35.7592]
[1735167244308,2.29906,3479.7,3479.0,35.7592]
[1735167244502,0.55,3479.6,3479.0,35.7592]
[1735167244807,0.55,3479.5,3479.0,35.7592]
[1735167245807,1.3642,3479.5,3479.0,0.7592]
[1735167246004,0.55,3479.5,3479.0,0.7592]
[1735167246221,0.55,3479.5,3479.0,35.7592]
[1735167251437,2.84918,3479.5,3479.0,35.7592]
[1735167251741,2.29918,3479.5,3479.0,35.7592]
[1735167254909,2.29918,3479.5,3479.0,0.7592]
[1735167255349,2.29918,3479.5,3479.0,35.7592]
[1735167258360,2.29918,3479.5,3479.0,0.7592]
[1735167258938,2.29918,3479.5,3479.1,35.0]
[1735167260466,2.29918,3479.5,3479.0,0.7592]
[1735167261039,2.29918,3479.5,3479.0,35.7592]
[1735167263069,0.55,3479.7,3478.3,0.7996]
[1735167263070,3.7523,3479.3,3478.3,0.7996]
[1735167263223,0.55,3479.2,3478.3,0.7996]
[1735167263564,2.29966,3478.8,3478.3,0.7996]
[1735167268133,2.29966,3478.8,3478.3,35.7996]
[1735167268430,0.55,3478.9,3478.3,35.7996]
[1735167268632,2.29973,3478.7,3478.3,0.7996]
[1735167268827,0.7523,3478.6,3477.1,3.49025828]
[1735167269159,0.55,3478.5,3477.4,35.0]
[1735167269532,0.55,3478.5,3477.5,0.7996]
[1735167269771,2.30004,3478.2,3477.5,0.7996]
[1735167270268,2.30004,3478.2,3477.6,35.0]
[1735167276775,0.55,3478.5,3477.7,0.7605]
[1735167276970,2.8499,3478.5,3477.7,0.7605]
[1735167277266,1.19889701,3478.7,3478.1,0.7605]
[1735167277660,1.19889701,3478.7,3478.3,0.7605]
[1735167278690,4.28651701,3479.3,3478.3,0.7605]
[1735167278836,4.28651701,3479.3,3478.3,3.60678631]
[1735167279033,2.29939,3479.2,3478.3,3.60678631]
[1735167279587,0.55,3479.1,3478.3,3.60678631]
[1735167279791,0.55,3479.1,3478.3,0.7605]
[1735167280189,0.55,3479.1,3478.1,35.0]
[1735167280571,0.55,3479.1,3478.2,0.7605]
[1735167281890,1.74889701,3479.1,3478.2,0.7605]
[1735167282088,4.04835701,3479.1,3478.2,0.7605]
[1735167284687,4.04835701,3479.1,3478.2,3.60678631]
[1735167285062,3.49835701,3479.1,3478.3,0.7605]
[1735167287710,2.29946,3479.1,3478.3,0.7605]
[1735167288971,3.49835701,3479.1,3478.3,0.7605]
[1735167290513,2.29946,3479.1,3478.3,0.7605]
[1735167291620,2.29946,3479.1,3478.3,2.84628631]
[1735167291915,2.29946,3479.1,3478.4,0.7944]
[1735167297527,3.49835701,3479.1,3478.4,0.7944]
[1735167302511,2.29946,3479.1,3478.4,0.7944]
[1735167303342,2.29946,3479.1,3478.6,0.7791]
[1735167303629,3.49835701,3479.1,3478.6,0.7791]
[1735167304636,2.29946,3479.1,3478.6,0.7791]
[1735167305152,1.19889701,3479.2,3478.6,0.7791]
[1735167307113,2.29957,3478.9,3478.6,0.7791]
[1735167308143,2.29957,3478.9,3478.1,0.7791]
[1735167309442,1.19889701,3478.8,3478.1,0.7791]
[1735167309879,2.29981,3478.6,3478.1,0.7791]
[1735167310080,0.3498707,3478.5,3478.1,0.7791]
[1735167312679,0.3498707,3478.5,3477.8,0.7791]
[1735167319472,1.54876771,3478.5,3477.8,0.7791]
[1735167320051,2.29998,3478.3,3477.8,0.7791]
[1735167321895,3.49887701,3478.3,3477.8,0.7791]
[1735167322094,4.47984395,3478.3,3477.8,0.7791]
[1735167326416,2.30012,3478.1,3477.4,0.7555]
[1735167327074,2.30023,3478.0,3477.4,0.7555]
[1735167327881,2.30017,3478.0,3477.4,0.7555]
[1735167328082,2.30027,3477.9,3477.4,0.7555]
[1735167328435,0.32510521,3477.8,3477.4,0.7555]
[1735167328598,2.62541521,3477.8,3477.1,1.94505828]
[1735167329216,2.62541521,3477.8,3477.1,0.7555]
[1735167329411,0.7594,3477.7,3477.1,0.7555]
[1735167329614,2.30046,3477.6,3477.1,0.7555]
[1735167329817,0.33849652,3477.5,3477.1,0.7555]
[1735167330703,2.63899652,3477.5,3477.1,0.7555]
[1735167330900,2.30065,3477.3,3476.6,1.94505828]
[1735167331218,2.30065,3477.3,3476.6,0.7555]
[1735167338221,3.08715,3477.3,3476.6,0.7555]
[1735167338414,0.34256465,3477.2,3476.6,0.7555]
[1735167339181,0.34256465,3477.2,3476.0,0.7887]
[1735167339182,0.55,3477.1,3476.0,0.7887]
[1735167339386,0.7865,3477.0,3476.0,0.7887]
[1735167339580,2.30098,3476.8,3476.0,0.7887]
[1735167341427,0.7865,3477.0,3476.0,0.7887]
[1735167341625,0.20798468,3476.9,3476.0,0.7887]
[1735167341829,2.30113,3476.6,3475.4,0.7989]
[1735167342036,2.30113,3476.6,3475.7,0.7989]
[1735167342928,0.8166,3476.3,3475.7,0.7989]
[1735167343323,3.1179,3476.3,3475.7,0.7989]
[1735167344028,0.8166,3476.3,3475.7,0.7989]
[1735167344386,3.11761,3476.8,3475.7,3.27555821]
[1735167344832,3.11761,3476.8,3475.7,2.47665821]
[1735167345033,3.11761,3476.8,3475.8,0.7989]
[1735167345506,2.30103,3476.7,3475.8,0.7989]
[1735167346121,2.30111,3476.6,3475.8,0.7989]
[1735167349251,2.30123,3476.4,3475.8,0.7989]
[1735167349424,1.30121826,3476.8,3475.8,0.7989]
[1735167349622,2.3011,3476.6,3475.8,0.7989]
[1735167351660,2.30084,3477.0,3475.9,3.12955]
[1735167351957,2.36186166,3477.2,3476.2,0.828]
[1735167352344,1.54146166,3477.2,3476.2,0.828]
[1735167352557,0.34256465,3477.2,3476.2,0.828]
[1735167352727,2.64326465,3477.2,3476.2,0.828]
[1735167352934,2.30081,3477.1,3476.2,0.828]
[1735167353566,0.34256465,3477.2,3476.2,1.13634651]
[1735167353773,0.34256465,3477.2,3476.3,0.828]
[1735167354245,0.34256465,3477.2,3476.4,0.828]
[1735167358672,2.64326465,3477.2,3476.4,0.828]
[1735167359183,2.30094,3476.9,3476.4,0.828]
[1735167359340,2.56529047,3476.9,3476.4,0.828]
[1735167360478,3.38569047,3476.9,3475.8,2.30158]
[1735167360635,3.38569047,3476.9,3475.9,4.77878212]
[1735167360839,3.38569047,3476.9,3476.0,0.828]
[1735167361653,2.30097,3476.8,3476.0,0.828]
[1735167363811,3.09593,3477.1,3476.2,0.95078212]
[1735167363975,3.49953701,3477.3,3476.5,0.95078212]
[1735167364310,3.49953701,3477.3,3476.6,0.7872]
[1735167365320,3.49953701,3477.3,3475.7,2.30163]
[1735167365321,2.30093,3476.9,3475.7,2.30163]
[1735167365614,3.49953701,3477.3,3475.6,0.7872]
[1735167365615,0.7951,3476.6,3475.6,0.7872]
[1735167365755,2.30142,3476.2,3475.6,0.7872]
[1735167367012,2.30142,3476.2,3475.7,35.0]
[1735167371262,2.30142,3476.2,3475.6,0.7872]
[1735167371830,2.30142,3476.2,3475.6,35.7872]
[1735167372928,1.99399701,3476.6,3475.6,35.7872]
[1735167373127,2.30124,3476.4,3475.6,35.7872]
[1735167373530,1.19889701,3476.5,3475.6,35.7872]
[1735167373746,2.30131,3476.3,3475.6,35.7872]
[1735167374722,2.30131,3476.3,3475.6,0.7872]
[1735167375272,2.30131,3476.3,3475.7,35.0]
[1735167382651,1.19889701,3476.4,3475.8,0.7982]
[1735167382817,1.19889701,3476.4,3475.9,0.7982]
[1735167384457,1.19889701,3476.6,3475.9,0.7982]
[1735167389782,2.30139,3476.2,3475.9,0.7982]
[1735167390156,2.30125,3476.4,3475.9,0.7982]
[1735167390363,3.50000701,3476.6,3475.9,0.7982]
[1735167391276,3.50000701,3476.6,3475.9,1.27343906]
[1735167391456,1.19889701,3476.5,3476.0,1.3136]
[1735167391647,1.19889701,3476.5,3476.1,0.7636]
[1735167392890,1.79834552,3476.7,3476.3,0.55]
[1735167392891,1.19889701,3476.7,3476.3,0.55]
[1735167393180,1.19889701,3476.7,3476.4,1.1186]
[1735167394251,2.39779402,3477.0,3476.4,1.1186]
[1735167394252,1.19889701,3477.0,3476.7,0.55]
[1735167394552,1.19889701,3477.0,3476.8,0.7636]
[1735167395484,1.19889701,3477.3,3476.8,0.7636]
[1735167397195,3.49947701,3477.4,3476.8,0.7636]
[1735167400778,2.30058,3477.4,3476.8,0.7636]
[1735167409129,1.19889701,3477.6,3476.8,0.7636]
[1735167409332,0.7698,3477.2,3476.8,0.7636]
[1735167409486,2.30077,3477.1,3476.8,0.7636]
[1735167412444,1.24058331,3477.5,3476.8,0.7636]
[1735167412719,0.47078331,3477.5,3476.8,0.7636]
[1735167412918,2.77134331,3477.5,3476.8,0.7636]
[1735167413125,2.30059,3477.4,3476.8,0.7636]
[1735167413588,2.30059,3477.4,3476.8,35.7636]
[1735167415837,2.30059,3477.4,3476.8,0.7636]
[1735167422240,1.96869701,3477.7,3476.8,3.60988631]
[1735167422407,4.26911701,3477.7,3476.9,0.7708]
[1735167423335,3.07022,3477.7,3476.9,0.7708]
[1735167423535,2.30046,3477.6,3476.9,0.7708]
[1735167424719,4.45339757,3477.8,3477.0,0.55]
[1735167424919,1.19889701,3477.8,3477.1,0.7708]
[1735167425124,1.19889701,3477.8,3477.3,0.7708]
[1735167425534,1.19889701,3477.8,3477.4,0.55]
[1735167425726,1.19889701,3477.8,3477.5,0.7708]
[1735167425922,1.19889701,3477.8,3477.6,0.55]
[1735167426228,1.19889701,3477.9,3477.6,0.55]
[1735167427563,3.49887701,3478.3,3477.6,0.55]
[1735167427763,4.43962772,3478.3,3477.6,0.55]
[1735167428457,3.49887701,3478.3,3477.7,0.7708]
[1735167428630,1.19889701,3478.3,3477.8,0.55]
[1735167428831,1.19889701,3478.3,3477.9,0.7708]
[1735167429042,1.19889701,3478.3,3477.7,0.02875269]
[1735167429043,1.19889701,3478.3,3478.1,0.7708]
[1735167429862,1.19889701,3478.3,3478.2,0.55]
[1735167430861,1.19889701,3478.8,3478.2,0.55]
[1735167432066,1.19889701,3478.9,3478.2,0.55]
[1735167433845,3.49840701,3479.0,3478.3,0.7708]
[1735167438380,2.29951,3479.0,3478.3,0.7708]
[1735167439776,3.49840701,3479.0,3478.3,0.7708]
[1735167441376,2.29951,3479.0,3478.3,0.7708]
[1735167442542,2.29951,3479.0,3478.5,0.8253]
[1735167443578,1.19889701,3479.2,3478.5,0.8253]
[1735167443877,3.49828701,3479.2,3478.5,0.8253]
[1735167444076,1.19889701,3479.2,3478.5,0.8253]
[1735167444282,1.19889701,3479.3,3478.5,0.8253]
[1735167444482,1.19889701,3479.3,3478.5,1.31099496]
[1735167445986,3.11046,3479.4,3478.5,1.31099496]
[1735167446345,3.11046,3479.4,3478.6,0.8253]
[1735167446643,2.29932,3479.3,3478.6,0.8253]
[1735167450462,2.29932,3479.3,3478.5,0.48569496]
[1735167450976,2.29932,3479.3,3478.6,0.8253]
[1735167453076,2.2994,3479.2,3478.6,0.8253]
[1735167457688,0.8112,3479.4,3478.6,0.8253]
[1735167458676,1.19889701,3479.6,3478.6,0.8253]
[1735167458984,2.2993,3479.4,3478.6,0.8253]
[1735167463192,1.89037382,3479.6,3478.6,0.8253]
[1735167463387,2.29966,3478.8,3478.2,1.3722]
[1735167463694,0.7812,3478.7,3477.8,0.8222]
[1735167463892,2.30006,3478.2,3477.8,0.8222]
[1735167464200,0.230006,3478.2,3477.8,0.8222]
[1735167464401,2.30024,3477.9,3477.5,1.18955828]
[1735167465037,2.30024,3477.9,3477.1,0.8222]
[1735167467106,2.30024,3477.9,3477.2,0.55]
[1735167469229,1.19889701,3478.0,3477.2,0.55]
[1735167470329,1.19889701,3478.0,3477.2,1.00994685]
[1735167470826,3.49908701,3478.0,3477.2,0.55]
[1735167473544,1.19889701,3477.9,3477.2,0.55]
[1735167474247,1.19889701,3477.9,3477.3,35.0]
[1735167474447,1.19889701,3477.9,3477.2,0.55]
[1735167474762,3.49908701,3478.0,3477.2,0.55]
[1735167474967,4.52127477,3478.0,3477.2,35.55]
[1735167475122,3.49908701,3478.0,3477.2,35.55]
[1735167477468,3.49908701,3478.0,3477.2,35.0]
[1735167479159,3.49908701,3478.0,3477.1,0.8222]
[1735167479366,2.30037,3477.7,3477.1,0.8222]
[1735167480659,1.19889701,3478.0,3477.1,0.8222]